fUST/lending_fUST_20260511
["ID","MTS","AMOUNT","RATE_DAILY","PERIOD"]
[422033587,1778503839000,-2793.185223,9.789e-05,2]
[422033593,1778503839000,-7600.16163652,0.00010558,2]
[422033596,1778503839000,-195.4553965,0.00010614,2]
[422033594,1778503839000,-578.20924308,0.00010559,2]
[422033598,1778503839000,-433.45811007,0.00010857,2]
[422033595,1778503839000,-235.76428911,0.00010576,2]
[422033597,1778503839000,-823.0,0.00010788,2]
[422033599,1778503839000,-46081.46062512,0.00010858,2]
[422033582,1778503839000,-165.963188,8.726e-05,2]
[422033611,1778503841000,-1859.99795964,0.00010858,2]
[422033620,1778503844000,-6992.63976199,0.000109,2]
[422033621,1778503844000,-478.55877297,0.000109,2]
[422033619,1778503844000,-732.945245,0.000109,2]
[422033618,1778503844000,-41207.25495189,0.00010858,2]
[422033646,1778503847000,-500.0,0.00010957,2]
[422033639,1778503847000,-500.0,0.00010957,2]
[422033647,1778503847000,-500.0,0.00010957,2]
[422033645,1778503847000,-500.0,0.00010957,2]
[422033644,1778503847000,-337.87143455,0.00010957,2]
[422033641,1778503847000,-500.0,0.00010957,2]
[422033640,1778503847000,-500.0,0.00010957,2]
[422033642,1778503847000,-500.0,0.00010957,2]
[422033638,1778503847000,-339.81633507,0.00010957,2]
[422033629,1778503847000,-1089.09369969,0.000109,2]
[422033635,1778503847000,-500.0,0.00010957,2]
[422033637,1778503847000,-500.0,0.00010957,2]
[422033634,1778503847000,-157.37628278,0.00010951,2]
[422033633,1778503847000,-537.6845,0.00010951,2]
[422033631,1778503847000,-4518.8247757,0.00010945,2]
[422033632,1778503847000,-162.380719,0.00010951,2]
[422033630,1778503847000,-2793.185223,0.0001093,2]
[422033628,1778503847000,-1699.29526093,0.000109,2]
[422033636,1778503847000,-500.0,0.00010957,2]
[422033648,1778503847000,-500.0,0.00010957,2]
[422033657,1778503847000,-500.0,0.00010958,2]
[422033649,1778503847000,-500.0,0.00010957,2]
[422033668,1778503847000,-283.86037019,0.00010958,2]
[422033667,1778503847000,-3885.15582306,0.00010958,2]
[422033666,1778503847000,-500.0,0.00010958,2]
[422033664,1778503847000,-500.0,0.00010958,2]
[422033665,1778503847000,-500.0,0.00010958,2]
[422033659,1778503847000,-500.0,0.00010958,2]
[422033661,1778503847000,-500.0,0.00010958,2]
[422033651,1778503847000,-823.3852,0.00010958,2]
[422033662,1778503847000,-500.0,0.00010958,2]
[422033656,1778503847000,-500.0,0.00010958,2]
[422033663,1778503847000,-500.0,0.00010958,2]
[422033660,1778503847000,-500.0,0.00010958,2]
[422033653,1778503847000,-640.88009736,0.00010958,2]
[422033654,1778503847000,-1728.46438575,0.00010958,2]
[422033652,1778503847000,-432.11609644,0.00010958,2]
[422033655,1778503847000,-2563.52038943,0.00010958,2]
[422033650,1778503847000,-500.0,0.00010957,2]
[422033658,1778503847000,-500.0,0.00010958,2]
[422033643,1778503847000,-500.0,0.00010957,2]
[422033676,1778504455000,-5000.0,4.807e-05,2]
[422033677,1778504472000,-160.58213,5.056e-05,2]
[422033678,1778504489000,-177.0,6.881e-05,2]
[422033680,1778504506000,-5000.0,7.002e-05,2]
[422033681,1778504523000,-1511.43275529,7.002e-05,2]
[422033682,1778504546000,-5000.0,6.932e-05,2]
[422033683,1778504565000,-160.58213,7.484e-05,2]
[422033684,1778504581000,-5000.0,7.409e-05,2]
[422033685,1778504599000,-204.0,8.881e-05,2]
[422033769,1778505038000,-647.0,0.00010875,2]
[422033776,1778505038000,-500.0,0.00010958,2]
[422033778,1778505038000,-500.0,0.00010958,2]
[422033777,1778505038000,-500.0,0.00010958,2]
[422033783,1778505038000,-500.0,0.00010958,2]
[422033780,1778505038000,-500.0,0.00010958,2]
[422033782,1778505038000,-500.0,0.00010958,2]
[422033784,1778505038000,-500.0,0.00010958,2]
[422033779,1778505038000,-500.0,0.00010958,2]
[422033786,1778505038000,-500.0,0.00010958,2]
[422033787,1778505038000,-500.0,0.00010958,2]
[422033785,1778505038000,-500.0,0.00010958,2]
[422033788,1778505038000,-500.0,0.00010958,2]
[422033772,1778505038000,-963.35569187,0.00010878,2]
[422033800,1778505038000,-544.00367871,0.00010958,2]
[422033792,1778505038000,-500.0,0.00010958,2]
[422033789,1778505038000,-500.0,0.00010958,2]
[422033791,1778505038000,-500.0,0.00010958,2]
[422033793,1778505038000,-500.0,0.00010958,2]
[422033781,1778505038000,-500.0,0.00010958,2]
[422033771,1778505038000,-1412.0,0.00010875,2]
[422033758,1778505038000,-420.0,8.359e-05,2]
[422033770,1778505038000,-2201.0,0.00010875,2]
[422033749,1778505038000,-363.49477105,7.448e-05,2]
[422033752,1778505038000,-4636.50522895,7.448e-05,2]
[422033753,1778505038000,-300.0,7.599e-05,2]
[422033755,1778505038000,-34715.1157771,7.6e-05,2]
[422033756,1778505038000,-7503.63847078,7.6e-05,2]
[422033754,1778505038000,-1200.0,7.599e-05,2]
[422033757,1778505038000,-9878.31468194,7.6e-05,2]
[422033760,1778505038000,-300.0,9.169e-05,2]
[422033796,1778505038000,-500.0,0.00010958,2]
[422033773,1778505038000,-9233.62874604,0.000109,2]
[422033764,1778505038000,-32615.4,0.0001,2]
[422033761,1778505038000,-157.0,9.195e-05,2]
[422033762,1778505038000,-177.0,9.561e-05,2]
[422033759,1778505038000,-5762.15295533,8.925e-05,2]
[422033765,1778505038000,-2523.85282204,0.0001053,2]
[422033767,1778505038000,-210.20516375,0.00010592,2]
[422033766,1778505038000,-1243.32786735,0.0001053,2]
[422033774,1778505038000,-500.0,0.00010958,2]
[422033775,1778505038000,-500.0,0.00010958,2]
[422033768,1778505038000,-220071.72873605,0.0001063,2]
[422033763,1778505038000,-160.58213,9.913e-05,2]
[422033798,1778505038000,-500.0,0.00010958,2]
[422033790,1778505038000,-500.0,0.00010958,2]
[422033799,1778505038000,-500.0,0.00010958,2]
[422033823,1778505038000,-455.51555461,0.00010958,2]
[422033828,1778505038000,-500.0,0.00010958,2]
[422033830,1778505038000,-500.0,0.00010958,2]
[422033821,1778505038000,-500.0,0.00010958,2]
[422033826,1778505038000,-500.0,0.00010958,2]
[422033827,1778505038000,-500.0,0.00010958,2]
[422033831,1778505038000,-329.552,0.00010958,2]
[422033824,1778505038000,-500.0,0.00010958,2]
[422033829,1778505038000,-500.0,0.00010958,2]
[422033825,1778505038000,-500.0,0.00010958,2]
[422033834,1778505038000,-500.0,0.00010958,2]
[422033835,1778505038000,-721.0,0.00010958,2]
[422033837,1778505038000,-500.0,0.00010958,2]
[422033843,1778505038000,-500.0,0.00010958,2]
[422033839,1778505038000,-500.0,0.00010958,2]
[422033840,1778505038000,-500.0,0.00010958,2]
[422033838,1778505038000,-500.0,0.00010958,2]
[422033836,1778505038000,-199.08531393,0.00010958,2]
[422033795,1778505038000,-500.0,0.00010958,2]
[422033841,1778505038000,-500.0,0.00010958,2]
[422033833,1778505038000,-503.31331126,0.00010958,2]
[422033832,1778505038000,-150.307,0.00010958,2]
[422033842,1778505038000,-500.0,0.00010958,2]
[422033819,1778505038000,-500.0,0.00010958,2]
[422033822,1778505038000,-500.0,0.00010958,2]
[422033797,1778505038000,-500.0,0.00010958,2]
[422033801,1778505038000,-695.3424,0.00010958,2]
[422033803,1778505038000,-501.10097245,0.00010958,2]
[422033804,1778505038000,-849.12,0.00010958,2]
[422033808,1778505038000,-500.0,0.00010958,2]
[422033809,1778505038000,-500.0,0.00010958,2]
[422033802,1778505038000,-500.0,0.00010958,2]
[422033807,1778505038000,-500.0,0.00010958,2]
[422033805,1778505038000,-500.0,0.00010958,2]
[422033794,1778505038000,-500.0,0.00010958,2]
[422033806,1778505038000,-500.0,0.00010958,2]
[422033810,1778505038000,-500.0,0.00010958,2]
[422033818,1778505038000,-587.17,0.00010958,2]
[422033817,1778505038000,-500.0,0.00010958,2]
[422033814,1778505038000,-500.0,0.00010958,2]
[422033820,1778505038000,-500.0,0.00010958,2]
[422033815,1778505038000,-500.0,0.00010958,2]
[422033813,1778505038000,-500.0,0.00010958,2]
[422033812,1778505038000,-500.0,0.00010958,2]
[422033811,1778505038000,-500.0,0.00010958,2]
[422033816,1778505038000,-500.0,0.00010958,2]
[422033877,1778505039000,-500.0,0.00010958,2]
[422033864,1778505039000,-500.0,0.00010958,2]
[422033870,1778505039000,-500.0,0.00010958,2]
[422033872,1778505039000,-500.0,0.00010958,2]
[422033874,1778505039000,-500.0,0.00010958,2]
[422033873,1778505039000,-500.0,0.00010958,2]
[422033875,1778505039000,-2885.04,0.00010958,2]
[422033867,1778505039000,-500.0,0.00010958,2]
[422033871,1778505039000,-522.98,0.00010958,2]
[422033880,1778505039000,-500.0,0.00010958,2]
[422033878,1778505039000,-585.78,0.00010958,2]
[422033879,1778505039000,-500.0,0.00010958,2]
[422033881,1778505039000,-1748.98,0.00010958,2]
[422033883,1778505039000,-500.0,0.00010958,2]
[422033882,1778505039000,-500.0,0.00010958,2]
[422033884,1778505039000,-657.89,0.00010958,2]
[422033886,1778505039000,-500.0,0.00010958,2]
[422033865,1778505039000,-500.0,0.00010958,2]
[422033876,1778505039000,-500.0,0.00010958,2]
[422033866,1778505039000,-500.0,0.00010958,2]
[422033852,1778505039000,-641.6,0.00010958,2]
[422033863,1778505039000,-500.0,0.00010958,2]
[422033885,1778505039000,-500.0,0.00010958,2]
[422033844,1778505039000,-500.0,0.00010958,2]
[422033847,1778505039000,-500.0,0.00010958,2]
[422033845,1778505039000,-500.0,0.00010958,2]
[422033848,1778505039000,-500.0,0.00010958,2]
[422033851,1778505039000,-500.0,0.00010958,2]
[422033854,1778505039000,-500.0,0.00010958,2]
[422033850,1778505039000,-500.0,0.00010958,2]
[422033849,1778505039000,-500.0,0.00010958,2]
[422033853,1778505039000,-500.0,0.00010958,2]
[422033855,1778505039000,-500.0,0.00010958,2]
[422033856,1778505039000,-500.0,0.00010958,2]
[422033857,1778505039000,-500.0,0.00010958,2]
[422033859,1778505039000,-500.0,0.00010958,2]
[422033869,1778505039000,-500.0,0.00010958,2]
[422033858,1778505039000,-500.0,0.00010958,2]
[422033861,1778505039000,-500.0,0.00010958,2]
[422033862,1778505039000,-500.0,0.00010958,2]
[422033860,1778505039000,-320.09903344,0.00010958,2]
[422033868,1778505039000,-500.0,0.00010958,2]
[422033893,1778505039000,-500.0,0.00010958,2]
[422033846,1778505039000,-500.0,0.00010958,2]
[422033890,1778505039000,-500.0,0.00010958,2]
[422033912,1778505039000,-500.0,0.00010958,2]
[422033913,1778505039000,-500.0,0.00010958,2]
[422033911,1778505039000,-500.0,0.00010958,2]
[422033910,1778505039000,-500.0,0.00010958,2]
[422033914,1778505039000,-500.0,0.00010958,2]
[422033917,1778505039000,-500.0,0.00010958,2]
[422033915,1778505039000,-500.0,0.00010958,2]
[422033920,1778505039000,-500.0,0.00010958,2]
[422033923,1778505039000,-500.0,0.00010958,2]
[422033921,1778505039000,-1750.83,0.00010958,2]
[422033924,1778505039000,-2891.12,0.00010958,2]
[422033930,1778505039000,-500.0,0.00010958,2]
[422033925,1778505039000,-500.0,0.00010958,2]
[422033927,1778505039000,-500.0,0.00010958,2]
[422033929,1778505039000,-500.0,0.00010958,2]
[422033928,1778505039000,-500.0,0.00010958,2]
[422033926,1778505039000,-500.0,0.00010958,2]
[422033932,1778505039000,-153.92608037,0.00010958,2]
[422033888,1778505039000,-309.78888024,0.00010958,2]
[422033916,1778505039000,-500.0,0.00010958,2]
[422033909,1778505039000,-500.0,0.00010958,2]
[422033931,1778505039000,-500.0,0.00010958,2]
[422033918,1778505039000,-577.6,0.00010958,2]
[422033907,1778505039000,-500.0,0.00010958,2]
[422033892,1778505039000,-500.0,0.00010958,2]
[422033891,1778505039000,-581.71,0.00010958,2]
[422033889,1778505039000,-295.35111976,0.00010958,2]
[422033894,1778505039000,-500.0,0.00010958,2]
[422033897,1778505039000,-500.0,0.00010958,2]
[422033898,1778505039000,-500.0,0.00010958,2]
[422033896,1778505039000,-500.0,0.00010958,2]
[422033900,1778505039000,-206.24703394,0.00010958,2]
[422033887,1778505039000,-500.0,0.00010958,2]
[422033899,1778505039000,-500.0,0.00010958,2]
[422033903,1778505039000,-500.0,0.00010958,2]
[422033895,1778505039000,-500.0,0.00010958,2]
[422033904,1778505039000,-500.0,0.00010958,2]
[422033902,1778505039000,-500.0,0.00010958,2]
[422033919,1778505039000,-500.0,0.00010958,2]
[422033905,1778505039000,-1201.78,0.00010958,2]
[422033906,1778505039000,-500.0,0.00010958,2]
[422033908,1778505039000,-500.0,0.00010958,2]
[422033901,1778505039000,-500.0,0.00010958,2]
[422033937,1778505040000,-500.0,0.00010629,2]
[422033938,1778505040000,-500.0,0.00010629,2]
[422033939,1778505040000,-500.0,0.00010629,2]
[422033942,1778505040000,-500.0,0.00010958,2]
[422033941,1778505040000,-899.69391963,0.00010958,2]
[422033943,1778505040000,-317.10906323,0.00010958,2]
[422033944,1778505040000,-428.80813864,0.00010958,2]
[422033940,1778505040000,-536.51000419,0.00010629,2]
[422033953,1778505043000,-500.0,0.00010629,2]
[422033954,1778505043000,-500.0,0.00010629,2]
[422033956,1778505043000,-500.0,0.00010629,2]
[422033960,1778505043000,-642.23712792,0.00010878,2]
[422033958,1778505043000,-500.0,0.00010629,2]
[422033957,1778505043000,-500.0,0.00010629,2]
[422033959,1778505043000,-500.0,0.00010629,2]
[422033961,1778505043000,-71.19186136,0.00010958,2]
[422033962,1778505043000,-437.57101072,0.00010958,2]
[422033955,1778505043000,-500.0,0.00010629,2]
[422033982,1778505046000,-500.0,0.00010958,2]
[422033986,1778505046000,-500.0,0.00010958,2]
[422033985,1778505046000,-500.0,0.00010958,2]
[422033983,1778505046000,-500.0,0.00010958,2]
[422033984,1778505046000,-500.0,0.00010958,2]
[422033981,1778505046000,-4354.80139515,0.00010958,2]
[422033980,1778505046000,-4266.19944885,0.00010958,2]
[422033979,1778505046000,-220.019156,0.00010958,2]
[422033976,1778505046000,-500.0,0.00010958,2]
[422033975,1778505046000,-500.0,0.00010958,2]
[422033972,1778505046000,-500.0,0.00010958,2]
[422033977,1778505046000,-500.0,0.00010958,2]
[422033974,1778505046000,-500.0,0.00010958,2]
[422033973,1778505046000,-500.0,0.00010958,2]
[422033971,1778505046000,-500.0,0.00010958,2]
[422033970,1778505046000,-632.4067101,0.00010958,2]
[422033968,1778505046000,-141.2219147,0.00010958,2]
[422033967,1778505046000,-428.15808528,0.00010878,2]
[422033969,1778505046000,-907.88036448,0.00010958,2]
[422033988,1778505046000,-1630.98,0.00010958,2]
[422033978,1778505046000,-500.0,0.00010958,2]
[422033989,1778505046000,-772.7,0.00010958,2]
[422033987,1778505046000,-500.0,0.00010958,2]
[422033993,1778505046000,-500.0,0.00010958,2]
[422033990,1778505046000,-500.0,0.00010958,2]
[422034012,1778505046000,-996.34,0.00010958,2]
[422034009,1778505046000,-500.0,0.00010958,2]
[422034007,1778505046000,-500.0,0.00010958,2]
[422034008,1778505046000,-609.26,0.00010958,2]
[422034003,1778505046000,-500.0,0.00010958,2]
[422034002,1778505046000,-500.0,0.00010958,2]
[422034004,1778505046000,-500.0,0.00010958,2]
[422034000,1778505046000,-496.38396376,0.00010958,2]
[422034006,1778505046000,-500.0,0.00010958,2]
[422034010,1778505046000,-5638.22,0.00010958,2]
[422033998,1778505046000,-500.0,0.00010958,2]
[422034001,1778505046000,-500.0,0.00010958,2]
[422033997,1778505046000,-500.0,0.00010958,2]
[422033995,1778505046000,-500.0,0.00010958,2]
[422034005,1778505046000,-500.0,0.00010958,2]
[422033994,1778505046000,-500.0,0.00010958,2]
[422033996,1778505046000,-500.0,0.00010958,2]
[422033992,1778505046000,-500.0,0.00010958,2]
[422033991,1778505046000,-500.0,0.00010958,2]
[422034011,1778505046000,-500.0,0.00010958,2]
[422033999,1778505046000,-500.0,0.00010958,2]
[422034026,1778505047000,-500.0,0.00010958,2]
[422034030,1778505047000,-500.0,0.00010958,2]
[422034020,1778505047000,-587.25,0.00010958,2]
[422034025,1778505047000,-500.0,0.00010958,2]
[422034029,1778505047000,-500.0,0.00010958,2]
[422034024,1778505047000,-500.0,0.00010958,2]
[422034023,1778505047000,-500.0,0.00010958,2]
[422034022,1778505047000,-656.36,0.00010958,2]
[422034015,1778505047000,-500.0,0.00010958,2]
[422034021,1778505047000,-500.0,0.00010958,2]
[422034031,1778505047000,-500.0,0.00010958,2]
[422034013,1778505047000,-500.0,0.00010958,2]
[422034017,1778505047000,-1126.86,0.00010958,2]
[422034016,1778505047000,-500.0,0.00010958,2]
[422034014,1778505047000,-500.0,0.00010958,2]
[422034019,1778505047000,-377.21882873,0.00010958,2]
[422034018,1778505047000,-500.0,0.00010958,2]
[422034028,1778505047000,-500.0,0.00010958,2]
[422034032,1778505047000,-523.92463206,0.00010958,2]
[422034027,1778505047000,-500.0,0.00010958,2]
[422034040,1778505047000,-324.25175193,0.00010958,2]
[422034033,1778505047000,-1266.04,0.00010958,2]
[422034053,1778505047000,-1806.8870744,0.00010999,2]
[422034034,1778505047000,-500.0,0.00010958,2]
[422034051,1778505047000,-100000.0,0.00010999,2]
[422034050,1778505047000,-1562.0,0.00010959,2]
[422034048,1778505047000,-813.74,0.00010958,2]
[422034049,1778505047000,-579.93,0.00010958,2]
[422034047,1778505047000,-2764.83,0.00010958,2]
[422034046,1778505047000,-500.0,0.00010958,2]
[422034042,1778505047000,-500.0,0.00010958,2]
[422034052,1778505047000,-8118.80109442,0.00010999,2]
[422034045,1778505047000,-500.0,0.00010958,2]
[422034037,1778505047000,-500.0,0.00010958,2]
[422034041,1778505047000,-500.0,0.00010958,2]
[422034035,1778505047000,-500.0,0.00010958,2]
[422034036,1778505047000,-500.0,0.00010958,2]
[422034044,1778505047000,-260.77067466,0.00010958,2]
[422034038,1778505047000,-500.0,0.00010958,2]
[422034043,1778505047000,-718.9,0.00010958,2]
[422034039,1778505047000,-500.0,0.00010958,2]
[422034056,1778505230000,3320.50926906,0.00019,120]
[422034133,1778506232000,-5000.0,3.705e-05,2]
[422034134,1778506232000,-399.86526697,3.742e-05,2]
[422034144,1778506238000,-715.0,4.157e-05,2]
[422034140,1778506238000,-1200.0,3.779e-05,2]
[422034145,1778506238000,-174.476212,4.265e-05,2]
[422034149,1778506238000,-174.476212,8.362e-05,2]
[422034142,1778506238000,-151.45865673,3.799e-05,2]
[422034138,1778506238000,-1224.85871026,3.742e-05,2]
[422034147,1778506238000,-174.476212,6.314e-05,2]
[422034150,1778506238000,-1151.78678676,8.892e-05,2]
[422034143,1778506238000,-300.0,3.856e-05,2]
[422034139,1778506238000,-3375.27602277,3.742e-05,2]
[422034148,1778506238000,-205.98377315,7.799e-05,2]
[422034146,1778506238000,-178.72121494,5.799e-05,2]
[422034151,1778506238000,-2264.38360622,8.992e-05,2]
[422034141,1778506238000,-5000.0,3.78e-05,2]
[422034162,1778506238000,-3588.86430604,9.763e-05,2]
[422034153,1778506238000,-2524.03586291,9.092e-05,2]
[422034165,1778506238000,-75963.52156915,9.765e-05,2]
[422034163,1778506238000,-1134.089456,9.763e-05,2]
[422034166,1778506238000,-33105.4610381,9.765e-05,2]
[422034159,1778506238000,-647.81,9.592e-05,2]
[422034157,1778506238000,-3237.86524186,9.492e-05,2]
[422034164,1778506238000,-7708.04623796,9.763e-05,2]
[422034161,1778506238000,-3416.32258663,9.692e-05,2]
[422034158,1778506238000,-436.70715565,9.592e-05,2]
[422034156,1778506238000,-3059.40789709,9.392e-05,2]
[422034154,1778506238000,-2702.49320756,9.192e-05,2]
[422034155,1778506238000,-2880.95055232,9.292e-05,2]
[422034152,1778506238000,-1161.386157,9e-05,2]
[422034160,1778506238000,-2292.46327004,9.592e-05,2]
[422034579,1778506243000,-2160.0,9.765e-05,2]
[422034613,1778506243000,-565.45,9.765e-05,2]
[422034616,1778506243000,-443.0,9.765e-05,2]
[422034957,1778506246000,-500.0,9.763e-05,2]
[422034930,1778506246000,-489.8521642,9.763e-05,2]
[422034928,1778506246000,-500.0,9.763e-05,2]
[422034932,1778506246000,-21614.05353572,9.765e-05,2]
[422034924,1778506246000,-2786.16072642,9.667e-05,2]
[422034954,1778506246000,-500.0,9.763e-05,2]
[422034956,1778506246000,-500.0,9.763e-05,2]
[422034926,1778506246000,-500.0,9.763e-05,2]
[422034961,1778506246000,-500.0,9.763e-05,2]
[422034963,1778506246000,-8116.04166623,9.765e-05,2]
[422034960,1778506246000,-500.0,9.763e-05,2]
[422034959,1778506246000,-500.0,9.763e-05,2]
[422034965,1778506246000,-500.0,9.763e-05,2]
[422034968,1778506246000,-2742.9476274,9.765e-05,2]
[422034966,1778506246000,-500.0,9.763e-05,2]
[422034970,1778506246000,-2435.74742218,9.765e-05,2]
[422035554,1778507069000,35037.11663158,0.00012,120]
[422035556,1778507093000,-4412.1337,8.094e-05,2]
[422035555,1778507093000,-300.0,7.727e-05,2]
[422035557,1778507093000,-587.8663,8.094e-05,2]
[422035558,1778507111000,4412.1337,8.094e-05,2]
[422035559,1778507124000,753856.15450047,0.00019178,120]
[422035560,1778507178000,-300.0,8.094e-05,2]
[422035668,1778507438000,-1200.0,7.932e-05,2]
[422035666,1778507438000,-2367.0,7.854e-05,2]
[422035665,1778507438000,-1042.37256033,7.854e-05,2]
[422035667,1778507438000,-1590.62743967,7.854e-05,2]
[422035669,1778507438000,-151.96611256,7.933e-05,2]
[422035673,1778507440000,-459.34763194,7.933e-05,2]
[422035707,1778507443000,-1008.37737979,7.854e-05,2]
[422035756,1778507447000,-300.0,8.946e-05,2]
[422035747,1778507447000,-1759.78887922,7.854e-05,2]
[422035749,1778507447000,-300.0,8.676e-05,2]
[422035748,1778507447000,-4388.6862555,7.933e-05,2]
[422035750,1778507447000,-300.0,8.676e-05,2]
[422035752,1778507447000,-300.0,8.677e-05,2]
[422035751,1778507447000,-300.0,8.676e-05,2]
[422035753,1778507447000,-1680.0,8.725e-05,2]
[422035754,1778507447000,-300.0,8.944e-05,2]
[422035755,1778507447000,-300.0,8.946e-05,2]
[422035759,1778507447000,-300.0,8.946e-05,2]
[422035762,1778507447000,-300.0,8.946e-05,2]
[422035760,1778507447000,-300.0,8.946e-05,2]
[422035770,1778507447000,-5321.47546444,8.946e-05,2]
[422035768,1778507447000,-300.0,8.946e-05,2]
[422035767,1778507447000,-300.0,8.946e-05,2]
[422035765,1778507447000,-300.0,8.946e-05,2]
[422035766,1778507447000,-300.0,8.946e-05,2]
[422035757,1778507447000,-300.0,8.946e-05,2]
[422035764,1778507447000,-300.0,8.946e-05,2]
[422035769,1778507447000,-300.0,8.946e-05,2]
[422035761,1778507447000,-300.0,8.946e-05,2]
[422035758,1778507447000,-300.0,8.946e-05,2]
[422035763,1778507447000,-300.0,8.946e-05,2]
[422035771,1778507455000,-4368.18311256,8.857e-05,2]
[422035772,1778507455000,-300.0,8.857e-05,2]
[422035773,1778507455000,-331.81688744,8.857e-05,2]
[422035775,1778507462000,300.0,8.945e-05,2]
[422035774,1778507462000,300.0,8.945e-05,2]
[422035776,1778507473000,3568.18311256,8.946e-05,2]
[422035777,1778507666000,1680.0,8.725e-05,2]
[422035780,1778507807000,-300.0,8.725e-05,2]
[422035783,1778507816000,-900.0,8.725e-05,2]
[422035786,1778507995000,-4329.77980064,8.638e-05,2]
[422035784,1778507995000,-300.0,8.015e-05,2]
[422035785,1778507995000,-218.2540868,8.219e-05,2]
[422035789,1778508093000,-500.61714521,7.856e-05,2]
[422035790,1778508110000,-849.6394623,7.935e-05,2]
[422035791,1778508126000,-500.61714521,7.935e-05,2]
[422035792,1778508143000,-849.6394623,7.935e-05,2]
[422035793,1778508161000,-500.61714521,7.935e-05,2]
[422035794,1778508179000,-849.6394623,7.935e-05,2]
[422035795,1778508197000,-154.0,7.17e-05,2]
[422035891,1778508632000,-161.13610576,7.561e-05,2]
[422035890,1778508632000,-5000.0,7.448e-05,2]
[422035892,1778508632000,-359.44402903,7.598e-05,2]
[422035936,1778508638000,-300.0,7.751e-05,2]
[422035935,1778508638000,-300.0,7.751e-05,2]
[422035933,1778508638000,-300.0,7.751e-05,2]
[422035931,1778508638000,-300.0,7.751e-05,2]
[422035929,1778508638000,-300.0,7.751e-05,2]
[422035932,1778508638000,-300.0,7.751e-05,2]
[422035930,1778508638000,-300.0,7.751e-05,2]
[422035928,1778508638000,-47161.2730294,7.751e-05,2]
[422035926,1778508638000,-62993.63886869,7.6e-05,2]
[422035927,1778508638000,-17623.77857514,7.6e-05,2]
[422035924,1778508638000,-7.90023664,7.599e-05,2]
[422035922,1778508638000,-300.0,7.599e-05,2]
[422035923,1778508638000,-300.0,7.599e-05,2]
[422035921,1778508638000,-300.0,7.599e-05,2]
[422035920,1778508638000,-840.55597097,7.598e-05,2]
[422035939,1778508638000,-300.0,7.751e-05,2]
[422035925,1778508638000,-292.09976336,7.599e-05,2]
[422035941,1778508638000,-300.0,7.751e-05,2]
[422035956,1778508638000,-614.21753258,8.013e-05,2]
[422035937,1778508638000,-300.0,7.751e-05,2]
[422035934,1778508638000,-300.0,7.751e-05,2]
[422035953,1778508638000,-614.21753258,8.013e-05,2]
[422035952,1778508638000,-614.21753258,8.013e-05,2]
[422035954,1778508638000,-614.21753258,8.013e-05,2]
[422035951,1778508638000,-614.21753258,8.013e-05,2]
[422035950,1778508638000,-614.21753258,8.013e-05,2]
[422035949,1778508638000,-614.21753258,8.013e-05,2]
[422035948,1778508638000,-614.21753258,8.013e-05,2]
[422035955,1778508638000,-614.21753258,8.013e-05,2]
[422035947,1778508638000,-614.21753258,8.013e-05,2]
[422035942,1778508638000,-300.0,7.751e-05,2]
[422035938,1778508638000,-300.0,7.751e-05,2]
[422035940,1778508638000,-300.0,7.751e-05,2]
[422035943,1778508638000,-300.0,7.751e-05,2]
[422035945,1778508638000,-325.805033,7.967e-05,2]
[422035946,1778508638000,-614.21753258,8.013e-05,2]
[422035944,1778508638000,-600.0,7.751e-05,2]
[422035997,1778508639000,-152.0,0.00010617,2]
[422035999,1778508639000,-191.76510426,0.00010684,2]